fUST/lending_fUST_20240126
["ID","MTS","AMOUNT","RATE_DAILY","PERIOD"]
[312789704,1706227838322,-285.50661289,0.00026396,2]
[312789706,1706227838331,-154.97575891,0.00026396,2]
[312789708,1706227838341,-557.41463037,0.00026396,2]
[312789710,1706227838350,-3660.05483598,0.00026396,2]
[312789712,1706227838361,-185.70292517,0.00026396,2]
[312789714,1706227838372,-200.12495662,0.00026396,2]
[312789715,1706227838381,-154.98396787,0.00026396,2]
[312789716,1706227838391,-156.23936971,0.00026396,2]
[312789717,1706227838400,-154.92253873,0.00026396,2]
[312789718,1706227838411,-274.01846199,0.00026396,2]
[312789719,1706227838421,-323.23376189,0.00026396,2]
[312789720,1706227838430,-8653.83689169,0.00026397,2]
[312789721,1706227838440,-276000.0,0.00026398,2]
[312789722,1706227838449,-166.666666,0.00026989,2]
[312789723,1706227838459,-290.53836744,0.00027,2]
[312789724,1706227838468,-200.0,0.00027499,15]
[312789725,1706227838477,-166.666666,0.00027652,2]
[312789726,1706227838487,-16794.35324464,0.000289,2]
[312789727,1706227838497,-154.8915759,0.00029,2]
[312789728,1706227838510,-1932.44477539,0.00029,2]
[312789729,1706227838520,-833.4574876,0.00029,2]
[312789730,1706227838530,-2038.7168945,0.00029,2]
[312789731,1706227838539,-153.0,0.00029178,2]
[312789733,1706227838549,-153.0,0.00029178,2]
[312789735,1706227838559,-153.0,0.00029178,2]
[312789737,1706227838568,-153.0,0.00029178,2]
[312789739,1706227838579,-153.0,0.00029315,2]
[312789741,1706227838590,-199.3339408,0.00029315,2]
[312789742,1706227838600,-159.3657322,0.00029315,2]
[312789744,1706227838612,-306.0,0.00029315,2]
[312789747,1706227838624,-199.3339408,0.00029315,2]
[312789749,1706227838634,-153.0,0.00029315,2]
[312789751,1706227838644,-153.0,0.00029315,2]
[312789752,1706227838654,-153.0,0.00029315,2]
[312789755,1706227838667,-199.3339408,0.00029315,2]
[312789756,1706227838676,-153.0,0.00029315,2]
[312789759,1706227838687,-153.0,0.00029315,2]
[312789760,1706227838697,-250.5513808,0.00029315,2]
[312789762,1706227838708,-171.7059798,0.00029315,2]
[312789764,1706227838718,-153.0,0.00029315,2]
[312789766,1706227838728,-153.0,0.00029315,2]
[312789768,1706227838737,-153.0,0.00029315,2]
[312789769,1706227838746,-153.0,0.00029315,2]
[312789771,1706227838755,-199.3339408,0.00029315,2]
[312789773,1706227838765,-153.0,0.00029315,2]
[312789775,1706227838775,-153.0,0.00029315,2]
[312789776,1706227838785,-153.0,0.00029315,2]
[312789777,1706227838795,-153.0,0.00029315,2]
[312789778,1706227838806,-153.0,0.00029315,2]
[312789780,1706227838815,-153.0,0.00029315,2]
[312789782,1706227838825,-199.3339408,0.00029315,2]
[312789783,1706227838836,-153.0,0.00029315,2]
[312789785,1706227838846,-153.0,0.00029315,2]
[312789787,1706227838858,-199.3339408,0.00029315,2]
[312789789,1706227838869,-153.0,0.00029315,2]
[312789790,1706227838879,-153.0,0.00029315,2]
[312789791,1706227838889,-153.0,0.00029315,2]
[312789792,1706227839003,-199.3339408,0.00029315,2]
[312789793,1706227839013,-153.0,0.00029315,2]
[312789794,1706227839023,-153.0,0.00029315,2]
[312789795,1706227839032,-153.0,0.00029589,2]
[312789796,1706227839041,-2543.41353878,0.0002979,7]
[312789797,1706227839050,-291.31420188,0.0003,3]
[312789798,1706227839060,-688.78830185,0.0003,4]
[312789799,1706227839069,-1000.0,0.0003,4]
[312789800,1706227839079,-2372.54255137,0.0003,2]
[312789801,1706227839089,-154.8915759,0.0003,4]
[312789802,1706227839098,-139264.62830083,0.0003,4]
[312789803,1706227839106,-244.31917233,0.0003,4]
[312789804,1706227839116,-155.74648817,0.0003,4]
[312789805,1706227839125,-166.95729913,0.0003,2]
[312789806,1706227839134,-1301.38907477,0.0003,2]
[312789807,1706227839143,-2718.33227316,0.0003,2]
[312789808,1706227839153,-6202.72987763,0.0003,2]
[312789809,1706227839164,-2195.13400402,0.0003,2]
[312789810,1706227839175,-4988.57079427,0.0003,3]
[312789811,1706227839185,-18606.04614329,0.0003,2]
[312789812,1706227839194,-700.57786282,0.0003,2]
[312789813,1706227839203,-253.0,0.0003,2]
[312789814,1706227839213,-153.0,0.00030137,2]
[312789815,1706227839224,-153.0,0.00030137,2]
[312789816,1706227839234,-153.0,0.00030137,2]
[312789817,1706227839243,-153.0,0.00030137,2]
[312789818,1706227839252,-153.0,0.00030137,2]
[312789819,1706227839261,-153.0,0.00030137,2]
[312789820,1706227839270,-153.0,0.00030137,2]
[312789821,1706227839280,-153.0,0.00030137,2]
[312789822,1706227839289,-153.0,0.00030137,2]
[312789823,1706227839298,-153.0,0.00030137,2]
[312789824,1706227839307,-153.0,0.00030137,2]
[312789825,1706227839317,-366.1405559,0.00030137,2]
[312789826,1706227839327,-199.3339408,0.00030137,2]
[312789827,1706227839336,-161.6456261,0.00030137,2]
[312789828,1706227839346,-153.0,0.00030137,2]
[312789829,1706227839355,-160.022401,0.00030137,2]
[312789830,1706227839365,-157.894736,0.00030137,2]
[312789831,1706227839374,-199.3339408,0.000302,2]
[312789832,1706227839383,-199.3339408,0.000302,2]
[312789833,1706227839393,-199.3339408,0.000302,2]
[312789834,1706227839402,-199.3339408,0.000302,2]
[312789835,1706227839412,-280.0,0.00030249,15]
[312789836,1706227839421,-157.894736,0.00030746,2]
[312789837,1706227839430,-170.03961878,0.00030999,2]
[312789838,1706227839439,-350.0,0.00030999,2]
[312789839,1706227839447,-500.0,0.00030999,2]
[312789840,1706227839457,-500.0,0.00030999,2]
[312789841,1706227839465,-500.0,0.00030999,2]
[312789842,1706227839475,-512.38921039,0.00030999,2]
[312789843,1706227839484,-500.0,0.00030999,2]
[312789844,1706227839496,-571.33828928,0.00030999,2]
[312789845,1706227839505,-203.94368128,0.00030999,2]
[312789846,1706227839514,-500.0,0.00030999,2]
[312789847,1706227839523,-500.0,0.00030999,2]
[312789848,1706227839532,-500.0,0.00030999,2]
[312789849,1706227839542,-500.0,0.00030999,2]
[312789850,1706227839551,-422.04712357,0.00030999,2]
[312789851,1706227839560,-500.0,0.00030999,2]
[312789852,1706227839570,-308477.0925742,0.00031,2]
[312789853,1706227839579,-160.022401,0.00031115,2]
[312789854,1706227839589,-157.894736,0.00031355,2]
[312789855,1706227839598,-326.58097042,0.000315,7]
[312789856,1706227839607,-157.894736,0.00031963,2]
[312789857,1706227839618,-9502.11081765,0.00032,10]
[312789858,1706227839626,-44714.10129752,0.00032,15]
[312789882,1706227841055,-15411.66,0.00026356,3]
[312789883,1706227841064,-1991.41110722,0.00032,15]
[312789996,1706228431481,200.94988461,0.000231,4]
[312790136,1706229038210,-154.87609912,0.0002079,2]
[312790137,1706229038220,-426.19756797,0.00022,2]
[312790139,1706229038229,-233.48850507,0.000231,2]
[312790141,1706229038238,-1826.97153487,0.000231,2]
[312790143,1706229038248,-154.87609912,0.000231,2]
[312790145,1706229038257,-300.0,0.000231,2]
[312790146,1706229038267,-343.25713726,0.000231,2]
[312790149,1706229038276,-684.47840013,0.000231,2]
[312790152,1706229038285,-3219.4473155,0.000231,2]
[312790155,1706229038294,-535.40572545,0.000231,2]
[312790158,1706229038303,-154.87609912,0.000231,2]
[312790160,1706229038312,-620.96495057,0.000231,2]
[312790163,1706229038321,-154.87609912,0.000231,2]
[312790165,1706229038331,-178.562869,0.00023663,2]
[312790166,1706229038339,-10723.6315977,0.00023814,2]
[312790168,1706229038351,-12855.4257714,0.00023814,2]
[312790170,1706229038360,-178.562869,0.0002447,2]
[312790171,1706229038369,-168.909616,0.00024762,2]
[312790172,1706229038378,-498.66582765,0.0002496,5]
[312790174,1706229038387,-4725.91421399,0.00025,2]
[312790175,1706229038397,-7385.90525508,0.00025,2]
[312790176,1706229038406,-178.562869,0.00025276,2]
[312790177,1706229038416,-200.0,0.00025409,7]
[312790178,1706229038425,-178.562869,0.00026083,2]
[312790179,1706229038434,-161.66762662,0.00026186,2]
[312790180,1706229038443,-14348.08,0.00026255,3]
[312790181,1706229038453,-17217.7,0.00026256,3]
[312790182,1706229038462,-17719.89,0.00026265,3]
[312790183,1706229038471,-20661.24,0.00026266,3]
[312790184,1706229038479,-2074.94658461,0.00026274,2]
[312790185,1706229038488,-423.77056198,0.00026275,2]
[312790186,1706229038498,-24793.49,0.00026276,3]
[312790187,1706229038507,-154.98396787,0.00026286,2]
[312790188,1706229038517,-687.99504305,0.00026286,2]
[312790189,1706229038526,-154.92253873,0.00026286,2]
[312790190,1706229038535,-154.90705577,0.00026286,2]
[312790191,1706229038545,-557.41463037,0.00026286,2]
[312790192,1706229038554,-156.23936971,0.00026286,2]
[312790193,1706229038563,-235.35066267,0.00026286,2]
[312790194,1706229038572,-1276.95029196,0.00026286,2]
[312790195,1706229038581,-713.25472283,0.00026286,2]
[312790196,1706229038590,-4011.78855735,0.00026286,2]
[312790197,1706229038599,-309.31860756,0.00026286,2]
[312790198,1706229038609,-154.92003135,0.00026286,2]
[312790199,1706229038618,-274.01846199,0.00026286,2]
[312790200,1706229038627,-157.46640728,0.00026286,2]
[312790201,1706229038637,-200.12495662,0.00026286,2]
[312790202,1706229038648,-1916.72029117,0.00026286,2]
[312790203,1706229038658,-403.00414072,0.00026286,2]
[312790204,1706229038668,-285.50661289,0.00026286,2]
[312790205,1706229038677,-156.46424994,0.00026286,2]
[312790206,1706229038686,-8653.83689169,0.00026286,2]
[312790207,1706229038695,-3660.05483598,0.00026286,2]
[312790208,1706229038705,-1198.71036477,0.00026286,2]
[312790209,1706229038714,-421.27166736,0.00026286,2]
[312790210,1706229038723,-154.97575891,0.00026287,2]
[312790211,1706229038733,-1266.95335862,0.00026287,2]
[312790212,1706229038742,-5716.06790161,0.00026287,2]
[312790213,1706229038752,-323.23376189,0.00026287,2]
[312790214,1706229038761,-155.51017843,0.00026287,2]
[312790215,1706229038770,-470.87385711,0.00026296,2]
[312790216,1706229038780,-276000.0,0.00026298,2]
[312790217,1706229038788,-178.562869,0.00026889,2]
[312790218,1706229038797,-290.53836744,0.00027,2]
[312790219,1706229038806,-280.0,0.0002795,15]
[312790220,1706229038815,-623.54039728,0.0002816,2]
[312790221,1706229038823,-306.0,0.00028493,2]
[312790222,1706229038832,-199.3339408,0.00028556,2]
[312790223,1706229038841,-154.8915759,0.00029,2]
[312790224,1706229038850,-1932.44477539,0.00029,2]
[312790225,1706229038859,-1000.0,0.00029,2]
[312790226,1706229038870,-153.0,0.00029178,2]
[312790227,1706229038880,-153.0,0.00029178,2]
[312790228,1706229038889,-153.0,0.00029178,2]
[312790229,1706229038899,-199.3339408,0.00029315,2]
[312790230,1706229038908,-199.3339408,0.00029315,2]
[312790231,1706229038917,-153.0,0.00029315,2]
[312790232,1706229038926,-159.3657322,0.00029315,2]
[312790233,1706229038935,-199.3339408,0.00029315,2]
[312790234,1706229038946,-171.7059798,0.00029315,2]
[312790235,1706229038955,-153.0,0.00029315,2]
[312790236,1706229038964,-153.0,0.00029315,2]
[312790237,1706229038973,-153.0,0.00029315,2]
[312790238,1706229038982,-250.5513808,0.00029315,2]
[312790239,1706229038990,-153.0,0.00029315,2]
[312790240,1706229038999,-153.0,0.00029315,2]
[312790241,1706229039008,-199.3339408,0.00029315,2]
[312790242,1706229039017,-153.0,0.00029315,2]
[312790243,1706229039026,-153.0,0.00029315,2]
[312790244,1706229039034,-153.0,0.00029315,2]
[312790245,1706229039043,-153.0,0.00029315,2]
[312790246,1706229039052,-153.0,0.00029315,2]
[312790247,1706229039060,-153.0,0.00029315,2]
[312790248,1706229039069,-153.0,0.00029315,2]
[312790249,1706229039078,-153.0,0.00029315,2]
[312790250,1706229039087,-199.3339408,0.00029315,2]
[312790251,1706229039095,-153.0,0.00029315,2]
[312790252,1706229039104,-620.17701986,0.00029568,2]
[312790253,1706229039114,-153.0,0.00029589,2]
[312790254,1706229039123,-233.62993,0.000298,2]
[312790255,1706229039132,-291.31420188,0.0003,3]
[312790256,1706229039142,-2372.54255137,0.0003,2]
[312790257,1706229039153,-139264.62830083,0.0003,4]
[312790258,1706229039162,-155.74648817,0.0003,4]
[312790259,1706229039170,-244.31917233,0.0003,4]
[312790260,1706229039179,-154.87609912,0.0003,4]
[312790261,1706229039188,-688.78830185,0.0003,4]
[312790262,1706229039197,-195.4790082,0.0003,2]
[312790263,1706229039206,-253.0,0.0003,2]
[312790264,1706229039215,-153.0,0.00030137,2]
[312790265,1706229039223,-153.0,0.00030137,2]
[312790266,1706229039232,-153.0,0.00030137,2]
[312790267,1706229039241,-153.0,0.00030137,2]
[312790268,1706229039250,-199.3339408,0.00030137,2]
[312790269,1706229039260,-153.0,0.00030137,2]
[312790270,1706229039268,-153.0,0.00030137,2]
[312790271,1706229039277,-153.0,0.00030137,2]
[312790272,1706229039286,-153.0,0.00030137,2]
[312790273,1706229039295,-199.3339408,0.00030137,2]
[312790274,1706229039304,-153.0,0.00030137,2]
[312790275,1706229039313,-153.0,0.00030137,2]
[312790276,1706229039322,-153.0,0.00030137,2]
[312790277,1706229039331,-306.0,0.00030137,2]
[312790278,1706229039340,-199.3339408,0.00030137,2]
[312790279,1706229039349,-153.0,0.00030137,2]
[312790280,1706229039358,-153.0,0.00030137,2]
[312790281,1706229039367,-153.0,0.00030137,2]
[312790282,1706229039376,-199.3339408,0.00030137,2]
[312790283,1706229039385,-153.0,0.00030137,2]
[312790284,1706229039395,-153.0,0.00030137,2]
[312790285,1706229039404,-153.0,0.00030137,2]
[312790286,1706229039413,-153.0,0.00030137,2]
[312790287,1706229039421,-199.3339408,0.00030137,2]
[312790288,1706229039430,-366.1405559,0.00030137,2]
[312790289,1706229039439,-199.3339408,0.00030137,2]
[312790290,1706229039448,-161.6456261,0.00030137,2]
[312790291,1706229039458,-160.022401,0.00030137,2]
[312790292,1706229039467,-157.894736,0.00030137,2]
[312790293,1706229039476,-391.0,0.00030745,15]
[312790294,1706229039485,-157.894736,0.00030746,2]
[312790295,1706229039494,-620.00885099,0.00031046,2]
[312790296,1706229039503,-160.022401,0.00031115,2]
[312790297,1706229039512,-306.0,0.00031278,2]
[312790298,1706229039521,-157.894736,0.00031355,2]
[312790299,1706229039530,-326.58097042,0.000315,7]
[312790300,1706229039539,-306.0,0.00031552,2]
[312790301,1706229039548,-508.40167916,0.0003184,2]
[312790302,1706229039558,-157.894736,0.00031963,2]
[312790303,1706229039567,-2925.76138951,0.00032,15]
[312790304,1706229039576,-3137.0499637,0.00032,2]
[312790305,1706229039585,-375.96014132,0.00032,4]
[312790306,1706229039595,-407.93473902,0.00032,4]
[312790307,1706229039604,-6129.67718162,0.00032,4]
[312790309,1706229039613,-454.70291986,0.00032,4]
[312790310,1706229039622,-1467.24755759,0.00032,2]
[312790311,1706229039631,-160.022401,0.00032094,2]
[312790312,1706229039640,-157.894736,0.00032572,2]
[312790313,1706229039650,-620.00044255,0.00032599,2]
[312790314,1706229039659,-15574.635097,0.00032877,2]
[312790315,1706229039669,-154.90705677,0.00033,4]
[312790316,1706229039677,-18380.29404598,0.00033,2]
[312790317,1706229039686,-236.0,0.00033,2]
[312790318,1706229039696,-253.0,0.00033,2]
[312790319,1706229039705,-160.022401,0.00033072,2]
[312790320,1706229039714,-236.0,0.00033151,2]
[312790321,1706229039723,-157.894736,0.00033181,2]
[312790322,1706229039732,-157.894736,0.0003379,2]
[312790323,1706229039741,-200.0,0.00033819,15]
[312790324,1706229039750,-348.0,0.00033819,15]
[312790325,1706229039761,-780.40182937,0.0003394,2]
[312790326,1706229039770,-2463.84006133,0.00033968,2]
[312790327,1706229039779,-850.08056414,0.00033968,2]
[312790328,1706229039788,-500.0,0.00033999,7]
[312790329,1706229039797,-512.38921039,0.00033999,7]
[312790330,1706229039806,-500.0,0.00033999,7]
[312790331,1706229039815,-500.0,0.00033999,7]
[312790332,1706229039825,-170.03961878,0.00033999,7]
[312790333,1706229039833,-350.0,0.00033999,7]
[312790334,1706229039842,-422.04712357,0.00033999,7]
[312790335,1706229039851,-500.0,0.00033999,7]
[312790336,1706229039860,-500.0,0.00033999,7]
[312790337,1706229039872,-500.0,0.00033999,7]
[312790338,1706229039881,-571.33828928,0.00033999,7]
[312790339,1706229039890,-500.0,0.00033999,7]
[312790340,1706229039899,-500.0,0.00033999,7]
[312790341,1706229039909,-500.0,0.00033999,7]
[312790342,1706229039918,-203.94368128,0.00033999,7]
[312790343,1706229039928,-45181.96468513,0.00034,2]
[312790344,1706229039937,-160.022401,0.00034051,2]
[312790345,1706229039947,-620.00002213,0.00034229,2]
[312790346,1706229039956,-246.5520124,0.00034247,2]
[312790347,1706229039965,-157.894736,0.00034399,2]
[312790348,1706229039974,-236.0,0.00034521,2]
[312790349,1706229039983,-1015.45543836,0.00035,2]
[312790350,1706229039992,-1510.23686533,0.00035,2]
[312790351,1706229040002,-157.30664617,0.00035,6]
[312790352,1706229040011,-476.44274189,0.00035,4]
[312790353,1706229040020,-657.40715545,0.00035,7]
[312790354,1706229040029,-154.8915759,0.00035,2]
[312790355,1706229040039,-157.894736,0.00035008,2]
[312790356,1706229040048,-160.022401,0.00035029,2]
[312790357,1706229040057,-157.894736,0.00035616,2]
[312790358,1706229040066,-154.8915759,0.0003582,7]
[312790359,1706229040153,-620.00000111,0.0003594,2]
[312790360,1706229040164,-154.8915759,0.00036,4]
[312790361,1706229040173,-253.0,0.00036,2]
[312790362,1706229040182,-160.022401,0.00036008,2]
[312790363,1706229040190,-157.894736,0.00036225,2]
[312790364,1706229040199,-240.0,0.00036247,2]
[312790365,1706229040209,-157.894736,0.00036834,2]
[312790366,1706229040218,-160.022401,0.00036986,2]
[312790368,1706229040227,-50000.0,0.00037011,2]
[312790369,1706229040236,-50000.0,0.00037011,2]
[312790371,1706229040245,-27741.13560462,0.00037044,2]
[312790373,1706229040254,-3432.01600829,0.00037098,2]
[312790375,1706229040263,-26503.2367533,0.00037126,2]
[312790376,1706229040273,-217.33605951,0.0003724,2]
[312790379,1706229040282,-8928.30503859,0.00037263,3]
[312790381,1706229040291,-157.894736,0.00037443,2]
[312790382,1706229040300,-620.00000006,0.00037737,2]
[312790383,1706229040309,-160.022401,0.00037965,2]
[312790384,1706229040318,-157.894736,0.00038052,2]
[312790385,1706229040327,-2147.50028627,0.000385,4]
[312790386,1706229040336,-157.894736,0.0003866,2]
[312790387,1706229040345,-236.0,0.00038663,14]
[312790388,1706229040354,-155.16244617,0.00038799,2]
[312790389,1706229040363,-139590.75311349,0.000388,10]
[312790390,1706229040372,-160.022401,0.00038943,2]
[312790391,1706229040381,-150.1,0.00039193,2]
[312790392,1706229040390,-157.894736,0.00039269,2]
[312790393,1706229040399,-150.0,0.00039799,2]
[312790394,1706229040408,-28487.31958388,0.00039852,2]
[312790396,1706229041314,-11184.5867577,0.00039852,2]
[312790461,1706229046272,-153.0,0.00029178,2]
[312790462,1706229046281,-153.0,0.00029315,2]
[312790463,1706229046290,-153.0,0.00029315,2]
[312790464,1706229046299,-199.3339408,0.00029315,2]
[312790465,1706229046308,-177.0,0.00033,2]
[312790466,1706229046317,-177.0,0.00034521,2]
[312790467,1706229046325,-177.0,0.00036247,2]
[312790468,1706229046334,-1191.45020411,0.00039852,2]
[312790469,1706229046350,-7737.89335911,0.00039852,2]
[312790470,1706229046359,-157.894736,0.00039878,2]
[312790471,1706229046368,-160.022401,0.00039922,2]
[312790472,1706229046378,-738.60088875,0.0004,2]
[312790474,1706229046386,-300.32940574,0.0004,2]
[312790476,1706229046396,-518.05826148,0.0004,5]
[312790478,1706229046407,-719.92364485,0.0004,2]
[312790480,1706229046416,-2720.3623587,0.0004,2]
[312790482,1706229046425,-2810.45212724,0.0004,2]
[312790484,1706229046435,-3860.11160253,0.00040034,5]
[312790486,1706229046447,-459.0,0.00040034,5]
[312790665,1706230238392,-154.86062544,0.00024762,4]
[312790666,1706230238402,-175.588819,0.00024763,2]
[312790667,1706230238412,-312.2386522,0.00025162,2]
[312790668,1706230238422,-175.588819,0.00025888,2]
[312790669,1706230238432,-4725.91421399,0.00026177,2]
[312790670,1706230238441,-14816.42,0.00026178,3]
[312790671,1706230238451,-17795.36,0.00026178,3]
[312790672,1706230238460,-154.86062544,0.00026185,2]
[312790673,1706230238469,-155.51017843,0.00026186,2]
[312790674,1706230238478,-421.27166736,0.00026186,2]
[312790675,1706230238487,-156.23936971,0.00026186,2]
[312790676,1706230238497,-1916.72029117,0.00026186,2]
[312790677,1706230238506,-713.25472283,0.00026186,2]
[312790678,1706230238515,-156.46424994,0.00026186,2]
[312790679,1706230238524,-3660.05483598,0.00026186,2]
[312790680,1706230238533,-154.92003135,0.00026186,2]
[312790681,1706230238543,-21354.44,0.00026186,3]
[312790682,1706230238552,-25625.32,0.00026188,3]
[312790683,1706230238561,-423.77056198,0.00026195,2]
[312790684,1706230238570,-470.87385711,0.00026196,2]
[312790685,1706230238579,-154.97575891,0.00026196,2]
[312790686,1706230238588,-1266.95335862,0.00026196,2]
[312790687,1706230238597,-323.23376189,0.00026196,2]
[312790688,1706230238607,-5716.06790161,0.00026196,2]
[312790689,1706230238616,-200.12495662,0.00026196,2]
[312790690,1706230238625,-309.31860756,0.00026196,2]
[312790691,1706230238634,-235.35066267,0.00026196,2]
[312790692,1706230238644,-403.00414072,0.00026196,2]
[312790693,1706230238653,-4011.78855735,0.00026196,2]
[312790694,1706230238662,-157.46640728,0.00026196,2]
[312790695,1706230238671,-274.01846199,0.00026196,2]
[312790696,1706230238681,-285.50661289,0.00026196,2]
[312790697,1706230238690,-8653.83689169,0.00026196,2]
[312790698,1706230238699,-1276.95029196,0.00026196,2]
[312790699,1706230238709,-154.98396787,0.00026196,2]
[312790700,1706230238718,-557.41463037,0.00026196,2]
[312790701,1706230238727,-154.90705577,0.00026196,2]
[312790702,1706230238736,-154.92253873,0.00026196,2]
[312790703,1706230238745,-687.99504305,0.00026196,2]
[312790704,1706230238754,-2074.94658461,0.00026196,2]
[312790705,1706230238763,-1198.71036477,0.00026197,2]
[312790706,1706230238773,-276000.0,0.00026198,2]
[312790707,1706230238781,-161.66762662,0.00026275,2]
[312790708,1706230238790,-24900.0,0.00026375,2]
[312790709,1706230238799,-290.53836744,0.00027,2]
[312790710,1706230238809,-175.588819,0.00027013,2]
[312790711,1706230238818,-175.588819,0.00028139,2]
[312790712,1706230238827,-200.0,0.00028802,15]
[312790713,1706230238837,-154.87609912,0.00029,2]
[312790714,1706230238846,-1932.44477539,0.00029,2]
[312790715,1706230238855,-1000.0,0.00029,2]
[312790716,1706230238864,-153.0,0.00029178,2]
[312790717,1706230238873,-153.0,0.00029178,2]
[312790718,1706230238882,-153.0,0.00029178,2]
[312790719,1706230238892,-199.3339408,0.00029315,2]
[312790720,1706230238900,-153.0,0.00029315,2]
[312790721,1706230238910,-306.0,0.00029315,2]
[312790722,1706230238919,-250.5513808,0.00029315,2]
[312790723,1706230238929,-199.3339408,0.00029315,2]
[312790724,1706230238938,-153.0,0.00029315,2]
[312790725,1706230238948,-171.7059798,0.00029315,2]
[312790726,1706230238957,-153.0,0.00029315,2]
[312790727,1706230238967,-153.0,0.00029315,2]
[312790728,1706230238976,-153.0,0.00029315,2]
[312790729,1706230238985,-153.0,0.00029315,2]
[312790730,1706230238995,-199.3339408,0.00029315,2]
[312790731,1706230239005,-153.0,0.00029315,2]
[312790732,1706230239014,-153.0,0.00029315,2]
[312790733,1706230239023,-153.0,0.00029315,2]
[312790734,1706230239033,-153.0,0.00029315,2]
[312790735,1706230239042,-153.0,0.00029315,2]
[312790736,1706230239051,-153.0,0.00029315,2]
[312790737,1706230239061,-153.0,0.00029315,2]
[312790738,1706230239070,-153.0,0.00029315,2]
[312790739,1706230239080,-199.3339408,0.00029315,2]
[312790740,1706230239089,-199.3339408,0.00029378,2]
[312790741,1706230239098,-360.9795669,0.00029378,2]
[312790742,1706230239107,-153.0,0.00029589,2]
[312790743,1706230239116,-291.31420188,0.0003,3]
[312790744,1706230239126,-688.78830185,0.0003,4]
[312790745,1706230239135,-2372.54255137,0.0003,2]
[312790746,1706230239144,-244.31917233,0.0003,4]
[312790747,1706230239153,-139264.62830083,0.0003,4]
[312790748,1706230239163,-155.74648817,0.0003,4]
[312790749,1706230239173,-195.4790082,0.0003,2]
[312790750,1706230239182,-154.86062544,0.0003,4]
[312790751,1706230239191,-153.0,0.00030137,2]
[312790752,1706230239200,-306.0,0.00030137,2]
[312790753,1706230239210,-153.0,0.00030137,2]
[312790754,1706230239219,-199.3339408,0.00030137,2]
[312790755,1706230239228,-199.3339408,0.00030137,2]
[312790756,1706230239237,-199.3339408,0.00030137,2]
[312790757,1706230239247,-199.3339408,0.00030137,2]
[312790758,1706230239260,-312.3657322,0.00030137,2]
[312790759,1706230239269,-157.894736,0.00030137,2]
[312790760,1706230239278,-160.022401,0.00030137,2]
[312790761,1706230239287,-153.0,0.000302,2]
[312790762,1706230239297,-153.0,0.000302,2]
[312790763,1706230239306,-153.0,0.000302,2]
[312790764,1706230239315,-153.0,0.000302,2]
[312790765,1706230239324,-153.0,0.000302,2]
[312790766,1706230239334,-366.1405559,0.000302,2]
[312790767,1706230239343,-157.894736,0.00030746,2]
[312790768,1706230239354,-326.58097042,0.00031,7]
[312790769,1706230239364,-160.022401,0.00031191,2]
[312790770,1706230239373,-157.894736,0.00031355,2]
[312790771,1706230239382,-280.0,0.00031683,15]
[312790772,1706230239391,-157.894736,0.00031963,2]
[312790773,1706230239399,-160.022401,0.00032244,2]
[312790774,1706230239409,-157.894736,0.00032572,2]
[312790775,1706230239419,-15574.635097,0.00032877,2]
[312790776,1706230239428,-154.90705677,0.00033,4]
[312790777,1706230239437,-157.894736,0.00033181,2]
[312790778,1706230239446,-160.022401,0.00033298,2]
[312790779,1706230239455,-157.894736,0.0003379,2]
[312790780,1706230239464,-2908.52974659,0.00034025,2]
[312790781,1706230239473,-654.41919298,0.00034025,2]
[312790782,1706230239482,-227.82141699,0.00034025,2]
[312790783,1706230239492,-542.16182151,0.00034025,2]
[312790784,1706230239501,-154.87609912,0.00034029,2]
[312790785,1706230239510,-246.5520124,0.00034247,2]